bitfinex-derivatives/quotes_BTCF0:USTF0_20250830
["timestamp","ask_amount","ask_price","bid_price","bid_amount"]
[1756519238624,0.5023445,107490.0,107480.0,0.46209]
[1756519239022,0.0930232,107480.0,107470.0,3.00345824]
[1756519239223,0.40933,107500.0,107480.0,0.46209]
[1756519239434,0.3628,107510.0,107490.0,2.48599686]
[1756519239634,0.3608,107510.0,107500.0,0.47193686]
[1756519239924,0.3608,107510.0,107500.0,0.93402686]
[1756519240832,0.48438188,107520.0,107500.0,0.93402686]
[1756519241027,0.48438188,107520.0,107510.0,0.91087686]
[1756519241241,0.48438188,107520.0,107510.0,0.44878686]
[1756519241721,0.48438188,107520.0,107500.0,0.47193686]
[1756519241924,0.3608,107510.0,107500.0,0.02315]
[1756519242127,0.40933,107510.0,107500.0,0.02315]
[1756519242437,0.5023272,107510.0,107500.0,0.46209]
[1756519242926,0.5023272,107510.0,107500.0,0.91087686]
[1756519244330,0.5321772,107510.0,107500.0,0.91087686]
[1756519244936,0.4846472,107510.0,107500.0,0.96672686]
[1756519245235,0.001,107510.0,107500.0,1.21672686]
[1756519245431,0.001,107510.0,107500.0,1.57752686]
[1756519245632,0.001,107510.0,107500.0,2.78404686]
[1756519248632,0.001,107510.0,107500.0,2.53404686]
[1756519248829,0.001,107510.0,107500.0,2.78404686]
[1756519249039,0.07505188,107520.0,107500.0,2.78404686]
[1756519249240,0.40933,107530.0,107510.0,0.96672686]
[1756519249435,0.43918,107530.0,107520.0,0.91087686]
[1756519249934,0.43918,107530.0,107520.0,0.44878686]
[1756519250139,0.43918,107530.0,107520.0,0.48148686]
[1756519250336,0.43918,107530.0,107520.0,0.50463686]
[1756519250536,0.3608,107540.0,107520.0,2.14465686]
[1756519250737,0.43918,107540.0,107530.0,0.50463686]
[1756519250937,0.43918,107540.0,107530.0,0.51794]
[1756519251141,0.43918,107540.0,107530.0,0.96672686]
[1756519251442,0.3608,107540.0,107530.0,0.96672686]
[1756519252740,0.6321428,107550.0,107540.0,0.05585]
[1756519253037,0.70466032,107550.0,107540.0,0.51794]
[1756519253235,0.65613032,107550.0,107540.0,2.16496686]
[1756519253534,0.65613032,107550.0,107540.0,0.96672686]
[1756519253735,0.70466032,107550.0,107540.0,0.51794]
[1756519253937,0.70466032,107550.0,107540.0,0.96672686]
[1756519254640,0.70466032,107550.0,107540.0,0.51794]
[1756519254942,0.34386032,107550.0,107540.0,0.96672686]
[1756519255141,0.70466032,107550.0,107540.0,0.51794]
[1756519255348,0.70466032,107550.0,107540.0,1.71446]
[1756519255539,0.70666032,107550.0,107540.0,0.51794]
[1756519255739,0.70666032,107550.0,107540.0,0.96672686]
[1756519256537,0.70666032,107550.0,107540.0,0.51794]
[1756519256841,0.65813032,107550.0,107540.0,0.96672686]
[1756519257244,0.70666032,107550.0,107540.0,0.96672686]
[1756519257443,0.70666032,107550.0,107540.0,2.16156686]
[1756519258440,0.95666032,107550.0,107540.0,0.44878686]
[1756519258641,0.1713517,107540.0,107530.0,0.52525243]
[1756519258845,0.1713517,107540.0,107530.0,0.98734243]
[1756519258846,0.5321517,107540.0,107530.0,0.98734243]
[1756519260038,0.5331517,107540.0,107530.0,0.98734243]
[1756519260344,0.001,107540.0,107530.0,1.34814243]
[1756519260547,0.001,107540.0,107530.0,1.69112273]
[1756519260940,0.3608,107570.0,107560.0,0.05094]
[1756519261138,0.4537457,107570.0,107560.0,2.15141686]
[1756519261341,0.484906,107590.0,107580.0,0.05094]
[1756519261534,0.484906,107590.0,107580.0,2.15277686]
[1756519261740,0.484906,107590.0,107580.0,0.96181686]
[1756519262038,0.0724769,107610.0,107600.0,0.05094]
[1756519262243,0.4537025,107620.0,107610.0,0.05094]
[1756519262540,0.1416198,107600.0,107590.0,1.24942]
[1756519262742,0.1416198,107600.0,107590.0,1.69820686]
[1756519262939,0.3608,107610.0,107590.0,1.3423484]
[1756519263145,0.39197,107610.0,107600.0,0.96181686]
[1756519263444,0.4095,107630.0,107610.0,0.1438511]
[1756519263637,0.60920783,107630.0,107620.0,0.51303]
[1756519263838,0.60920783,107630.0,107620.0,0.96181686]
[1756519264241,0.51631393,107630.0,107620.0,0.96181686]
[1756519264447,0.56050813,107630.0,107620.0,0.96181686]
[1756519264848,0.60920813,107630.0,107620.0,0.96181686]
[1756519265045,0.70920813,107630.0,107620.0,0.96181686]
[1756519265749,0.172774,107620.0,107610.0,0.44878686]
[1756519266049,0.58004233,107630.0,107610.0,0.49972686]
[1756519266247,0.71121233,107630.0,107620.0,0.91087686]
[1756519266438,0.0929204,107600.0,107590.0,0.83060686]
[1756519266641,0.1416171,107610.0,107590.0,1.61146]
[1756519266837,0.4537073,107620.0,107600.0,0.86052686]
[1756519267043,0.4537073,107620.0,107610.0,0.44878686]
[1756519267044,0.5335773,107620.0,107610.0,0.44878686]
[1756519267244,0.1416205,107600.0,107590.0,1.19944]
[1756519267455,0.1416205,107600.0,107580.0,0.49972686]
[1756519267456,0.1727992,107590.0,107580.0,0.49972686]
[1756519267748,0.5335992,107590.0,107580.0,0.91087686]
[1756519268147,0.4095,107610.0,107590.0,0.02102]
[1756519268343,0.1,107610.0,107600.0,1.41553726]
[1756519268540,0.03117,107620.0,107610.0,0.05094]
[1756519268739,0.48514393,107630.0,107610.0,2.16183716]
[1756519268938,0.07564393,107630.0,107620.0,1.32261686]
[1756519269138,0.54067,107640.0,107630.0,0.02102]
[1756519269340,0.54067,107640.0,107620.0,0.44878686]
[1756519269341,0.49197,107640.0,107620.0,0.44878686]
[1756519269541,0.07987,107620.0,107610.0,0.46980686]
[1756519269745,0.07987,107620.0,107610.0,1.68208686]
[1756519270005,0.03117,107620.0,107610.0,1.68208686]
[1756519270143,0.03117,107620.0,107610.0,2.14417686]
[1756519270363,0.03117,107620.0,107610.0,0.51303]
[1756519270548,0.44067,107620.0,107610.0,0.94079686]
[1756519270850,0.07987,107610.0,107600.0,0.44878686]
[1756519271047,0.0487,107600.0,107590.0,0.85123727]
[1756519271262,0.4095,107600.0,107590.0,0.91087686]
[1756519271653,0.4095,107600.0,107590.0,0.46209]
[1756519271853,0.4095,107600.0,107590.0,0.91087686]
[1756519272243,0.48471905,107600.0,107590.0,0.91087686]
[1756519273050,0.48471905,107600.0,107590.0,0.93189686]
[1756519273353,0.43601905,107600.0,107590.0,0.93189686]
[1756519273754,0.43701905,107600.0,107590.0,0.93189686]
[1756519274254,0.43701905,107600.0,107590.0,0.51303]
[1756519274443,0.46818905,107600.0,107590.0,0.96181686]
[1756519274642,0.51688905,107600.0,107590.0,0.96181686]
[1756519275451,0.07621905,107600.0,107590.0,0.96181686]
[1756519275654,0.001,107600.0,107590.0,1.30474606]
[1756519275854,0.001,107600.0,107590.0,1.21181686]
[1756519276249,0.001,107600.0,107590.0,1.66554626]
[1756519276652,0.0929163,107610.0,107600.0,0.05094]
[1756519276849,0.5335863,107610.0,107600.0,0.49201]
[1756519277052,0.1416209,107600.0,107590.0,1.65698686]
[1756519277248,0.57641355,107600.0,107590.0,1.67800686]
[1756519277454,0.4537194,107610.0,107600.0,0.05094]
[1756519277755,0.5335894,107610.0,107600.0,0.96181686]
[1756519277952,0.1416209,107600.0,107590.0,1.69986207]
[1756519278145,0.5335909,107600.0,107590.0,1.23005521]
[1756519278458,0.5335909,107600.0,107590.0,2.16095207]
[1756519278660,0.5335909,107600.0,107590.0,1.71216521]
[1756519278956,0.5335909,107600.0,107590.0,1.69114521]
[1756519279256,0.5335909,107600.0,107590.0,2.13993207]
[1756519279555,0.5335909,107600.0,107590.0,2.15990207]
[1756519280347,0.5345909,107600.0,107590.0,2.15990207]
[1756519280552,0.5345909,107600.0,107590.0,0.93117207]
[1756519280759,0.5345909,107600.0,107590.0,0.48238521]
[1756519281057,0.5345909,107600.0,107590.0,0.93117207]
[1756519281256,0.5345909,107600.0,107590.0,0.98106207]
[1756519281750,0.60870991,107600.0,107590.0,0.93117207]
[1756519282458,0.85870991,107600.0,107590.0,0.02029521]
[1756519283048,0.07987,107590.0,107550.0,0.02043755]
[1756519283349,0.44067,107560.0,107550.0,0.04989]
[1756519283547,0.44067,107560.0,107550.0,0.03456]
[1756519283856,0.44067,107560.0,107550.0,0.51662]
[1756519284056,0.44067,107560.0,107550.0,0.00464]
[1756519284554,0.44067,107560.0,107550.0,0.00664]
[1756519285054,0.69067,107560.0,107550.0,0.00664]
[1756519285452,0.69167,107560.0,107550.0,0.00464]
[1756519285853,0.44167,107560.0,107550.0,0.96540686]
[1756519286059,0.001,107560.0,107550.0,1.59731503]
[1756519286251,0.001,107560.0,107550.0,2.77998503]
[1756519286758,0.001,107560.0,107550.0,2.41918503]
[1756519287149,0.001,107560.0,107550.0,2.43915503]
[1756519287952,0.3608,107570.0,107550.0,2.43915503]
[1756519288146,0.001,107560.0,107550.0,1.27827817]
[1756519288353,0.0497,107560.0,107550.0,1.72706503]
[1756519288753,0.0497,107560.0,107550.0,1.74036817]
[1756519288959,0.001,107560.0,107550.0,2.18915503]
[1756519289259,0.39297,107570.0,107560.0,0.04989]
[1756519289453,0.39297,107570.0,107560.0,0.96076686]
[1756519290159,0.0487,107560.0,107550.0,1.69714503]
[1756519290551,0.0487,107560.0,107550.0,2.15923503]
[1756519290754,0.1726355,107560.0,107550.0,0.93662503]
[1756519291151,0.1249355,107560.0,107550.0,0.96784503]
[1756519291355,0.001,107560.0,107550.0,0.98794503]
[1756519292253,0.001,107560.0,107550.0,1.69170913]
[1756519292455,0.4537461,107580.0,107560.0,0.0201]
[1756519292759,0.4537461,107580.0,107570.0,0.96219686]
[1756519292958,0.4537461,107580.0,107570.0,0.50010686]
[1756519293355,0.4537461,107580.0,107570.0,0.96219686]
[1756519294156,0.4537334,107590.0,107580.0,0.05132]
[1756519294358,0.5847134,107590.0,107580.0,0.96219686]
[1756519294657,0.1929334,107590.0,107580.0,0.96219686]
[1756519294862,0.0929334,107590.0,107580.0,0.96219686]
[1756519295058,0.0929334,107590.0,107580.0,2.15523686]
[1756519295255,0.57176411,107600.0,107580.0,2.15523686]
[1756519295564,0.70274411,107600.0,107590.0,0.51341]
[1756519295954,0.70274411,107600.0,107590.0,0.05132]
[1756519296359,0.70274411,107600.0,107590.0,0.51341]
[1756519296560,0.70274411,107600.0,107590.0,0.96219686]
[1756519297466,0.62784411,107600.0,107590.0,0.96219686]
[1756519297661,0.70274411,107600.0,107590.0,0.96219686]
[1756519297860,0.70574411,107600.0,107590.0,0.96219686]
[1756519298370,0.70574411,107600.0,107590.0,0.51341]
[1756519298576,0.70574411,107600.0,107590.0,0.96219686]
[1756519298765,0.30102411,107600.0,107590.0,0.96219686]
[1756519298961,0.66182411,107600.0,107590.0,0.96219686]
[1756519299270,0.70574411,107600.0,107590.0,0.96387876]
[1756519299969,0.66182411,107600.0,107590.0,0.96387876]
[1756519300571,0.27004411,107600.0,107590.0,0.96387876]
[1756519300775,0.63084411,107600.0,107590.0,0.96387876]
[1756519302574,0.27004411,107600.0,107590.0,0.96387876]
[1756519302874,0.63084411,107600.0,107590.0,0.96387876]
[1756519304368,0.27004411,107600.0,107590.0,0.96387876]
[1756519304674,0.17004411,107600.0,107590.0,0.96387876]
[1756519305268,0.17004411,107600.0,107590.0,2.14139876]
[1756519305469,0.17004411,107600.0,107590.0,0.96387876]
[1756519305673,0.60574411,107600.0,107590.0,0.49331]
[1756519305880,0.85574411,107600.0,107590.0,0.01863356]
[1756519306378,0.85574411,107600.0,107590.0,0.52042232]
[1756519306569,0.85574411,107600.0,107590.0,0.01863356]
[1756519307274,0.85574411,107600.0,107590.0,0.46910232]
[1756519307971,0.60574411,107600.0,107590.0,0.52042232]
[1756519308179,0.17004411,107600.0,107590.0,0.98251232]
[1756519308675,0.20102411,107600.0,107590.0,0.98251232]
[1756519308876,0.24494411,107600.0,107590.0,2.15575232]
[1756519309372,0.20102411,107600.0,107590.0,2.15575232]
[1756519309568,0.17004411,107600.0,107590.0,2.15575232]
[1756519309766,0.003,107600.0,107590.0,3.30995058]
[1756519310376,0.003,107600.0,107590.0,2.76655232]
[1756519311281,0.16647155,107610.0,107590.0,3.30995058]
[1756519311282,0.07355465,107610.0,107590.0,3.30995058]
[1756519311586,0.4976279,107620.0,107590.0,3.30995058]
[1756519311587,0.0929079,107620.0,107610.0,0.04447]
[1756519311881,0.1929079,107620.0,107610.0,2.12774876]
[1756519312183,0.1929079,107620.0,107610.0,2.48854876]
[1756519312373,0.0929079,107620.0,107610.0,2.48854876]
[1756519312775,0.0929079,107620.0,107610.0,0.85573876]
[1756519312980,0.1678079,107620.0,107610.0,2.48870876]
[1756519313280,0.1238879,107620.0,107610.0,2.48870876]
[1756519313679,0.6286079,107620.0,107610.0,0.95802876]
[1756519313874,0.6326079,107620.0,107610.0,1.62154876]
[1756519314275,0.7052343,107620.0,107610.0,1.62154876]
[1756519314484,0.7052343,107620.0,107610.0,0.45146876]
[1756519314788,0.6123264,107620.0,107610.0,0.45146876]
[1756519315779,0.6123264,107620.0,107610.0,0.46309]
[1756519315980,0.6123264,107620.0,107610.0,0.91355876]
[1756519316386,0.6123264,107620.0,107610.0,0.94477876]
[1756519316781,0.6083264,107620.0,107610.0,0.54104]
[1756519317087,0.8583264,107620.0,107610.0,0.002]
[1756519317288,0.9512382,107620.0,107610.0,0.002]
[1756519317583,0.9512382,107620.0,107590.0,0.06436356]
[1756519317584,1.35778696,107620.0,107590.0,0.06436356]
[1756519317886,0.39178,107600.0,107590.0,0.55767356]
[1756519318087,0.39178,107600.0,107590.0,0.09558356]
[1756519318280,0.39178,107600.0,107590.0,0.55767356]
[1756519318889,0.4357,107600.0,107590.0,1.00814232]
[1756519319590,0.39178,107600.0,107590.0,1.00814232]
[1756519320191,0.3608,107600.0,107590.0,1.00814232]
[1756519320388,0.6012382,107620.0,107610.0,0.03122]
[1756519320587,0.7012382,107620.0,107610.0,0.98950876]
[1756519320991,0.6573182,107620.0,107610.0,0.98950876]
[1756519321688,0.7024382,107620.0,107610.0,0.98950876]
[1756519322386,0.6573182,107620.0,107610.0,0.98950876]
[1756519323590,0.7024382,107620.0,107610.0,0.98950876]
[1756519323792,0.7024382,107620.0,107610.0,0.94377876]
[1756519324090,0.7024382,107620.0,107600.0,1.29113064]
[1756519324091,0.9073182,107620.0,107600.0,1.6944194]
[1756519324394,0.9073182,107620.0,107600.0,2.09009194]
[1756519324395,0.40592,107610.0,107600.0,2.09009194]
[1756519324691,0.3608,107610.0,107600.0,2.13767194]
[1756519324881,0.5574482,107620.0,107610.0,0.07881]
[1756519325084,0.6574482,107620.0,107610.0,0.99136876]
[1756519325499,0.7025682,107620.0,107610.0,0.99136876]
[1756519325880,0.6263382,107620.0,107610.0,0.99136876]
[1756519326080,0.5574482,107620.0,107610.0,0.99136876]
[1756519326286,0.6025682,107620.0,107610.0,0.99136876]
[1756519326697,0.7025682,107620.0,107610.0,0.99136876]
[1756519326897,0.5263382,107620.0,107610.0,0.99136876]
[1756519327097,0.5263382,107620.0,107610.0,1.24136876]
[1756519327301,0.1655382,107620.0,107610.0,1.24136876]
[1756519328296,0.3608,107630.0,107610.0,1.64750086]
[1756519328591,0.3608,107640.0,107620.0,2.46210876]
[1756519328796,0.3608,107640.0,107630.0,0.99136876]
[1756519329493,0.42548015,107650.0,107640.0,0.07881]
[1756519329690,0.42548015,107650.0,107640.0,2.14600876]
[1756519330296,0.46917543,107650.0,107640.0,2.14600876]
[1756519331995,0.47217543,107650.0,107640.0,2.14600876]
[1756519332996,0.07780528,107650.0,107640.0,3.20727752]
[1756519333593,0.003,107650.0,107640.0,3.30016372]
[1756519333796,0.3608,107670.0,107660.0,0.07881]
[1756519333990,0.3608,107680.0,107660.0,1.35216876]
[1756519334291,0.46750394,107680.0,107670.0,2.14188876]
[1756519335699,0.07559394,107680.0,107670.0,2.14188876]
[1756519335891,0.04512,107680.0,107670.0,2.14188876]
[1756519336095,0.003,107680.0,107670.0,2.14188876]
[1756519336293,0.003,107680.0,107670.0,3.20315752]
[1756519336894,0.0958518,107680.0,107670.0,2.84235752]
[1756519337098,0.0958518,107680.0,107670.0,3.20315752]
[1756519337497,0.003,107680.0,107670.0,3.20315752]
[1756519337701,0.0958517,107680.0,107670.0,3.20315752]
[1756519337903,0.0958517,107680.0,107670.0,2.77181954]
[1756519338806,0.0958517,107680.0,107670.0,1.62129954]
[1756519338999,0.5298817,107680.0,107670.0,1.01249954]
[1756519339304,0.5298817,107680.0,107670.0,2.15773954]
[1756519340197,0.5298817,107680.0,107670.0,1.01249954]
[1756519340593,0.5298817,107680.0,107670.0,2.15573954]
[1756519340800,0.5298817,107680.0,107670.0,0.56203078]
[1756519340999,0.7798817,107680.0,107670.0,0.09994078]
[1756519341303,0.7798817,107680.0,107670.0,1.64498954]
[1756519341498,0.7798817,107680.0,107670.0,1.69256954]
[1756519342703,0.7798817,107680.0,107670.0,0.55040954]
[1756519342909,0.7798817,107680.0,107670.0,1.69144954]
[1756519343311,0.7798817,107680.0,107670.0,1.24098078]
[1756519343608,0.7798817,107680.0,107670.0,1.69144954]
[1756519345498,0.4536517,107680.0,107670.0,2.15353954]
[1756519345904,0.4536517,107680.0,107670.0,2.8540083]
[1756519345905,0.3608,107680.0,107670.0,2.8540083]
[1756519346310,0.3608,107680.0,107670.0,3.1667686]
[1756519346706,0.07303221,107690.0,107680.0,0.0928517]
[1756519346912,0.02811425,107700.0,107680.0,1.84790922]
[1756519347210,0.1690614,107710.0,107700.0,0.07881]
[1756519347410,0.19688509,107710.0,107700.0,1.35216876]
[1756519347607,0.19688509,107710.0,107700.0,0.43961]
[1756519347808,0.12065509,107710.0,107700.0,1.35216876]
[1756519349513,0.12165509,107710.0,107700.0,1.35216876]
[1756519349714,0.001,107710.0,107700.0,1.60216876]
[1756519350406,0.19027597,107720.0,107710.0,0.07872]
[1756519350612,0.19027597,107720.0,107710.0,2.48175876]
[1756519351002,0.19027597,107720.0,107710.0,1.35207876]
[1756519351215,0.23595597,107720.0,107710.0,2.48083876]
[1756519351607,0.19027597,107720.0,107710.0,2.48083876]
[1756519351807,0.19227597,107720.0,107710.0,2.48083876]
[1756519352205,0.19227597,107720.0,107710.0,1.35207876]
[1756519352715,0.19227597,107720.0,107710.0,2.47899876]
[1756519353705,0.19227597,107720.0,107710.0,1.35207876]
[1756519353917,0.23795597,107720.0,107710.0,2.47591876]
[1756519354309,0.19227597,107720.0,107710.0,2.47591876]
[1756519354912,0.22492597,107720.0,107710.0,0.90161]
[1756519355117,0.27060597,107720.0,107710.0,2.47611876]
[1756519355718,0.22492597,107720.0,107710.0,2.47611876]
[1756519355917,0.19227597,107720.0,107710.0,2.47611876]
[1756519357716,0.23795597,107720.0,107710.0,2.47235876]
[1756519357919,0.19227597,107720.0,107710.0,2.47235876]
[1756519359714,0.19227597,107720.0,107710.0,1.35207876]
[1756519360019,0.19227597,107720.0,107710.0,2.46971876]
[1756519360407,0.19227597,107720.0,107710.0,1.35207876]
[1756519360615,0.1385062,107710.0,107700.0,1.03116876]
[1756519360916,0.0928262,107710.0,107700.0,2.65298876]
[1756519361519,0.1385062,107710.0,107700.0,2.65298876]
[1756519361712,0.1385062,107710.0,107700.0,2.60925876]
[1756519361912,0.1385062,107710.0,107700.0,2.43508876]
[1756519362313,0.1385062,107710.0,107700.0,2.52105876]
[1756519363717,0.0928262,107710.0,107700.0,2.52105876]
[1756519364120,0.07295245,107720.0,107710.0,0.07608]
[1756519364314,0.07295245,107720.0,107710.0,0.52654876]
[1756519364722,0.14677358,107720.0,107710.0,0.52654876]
[1756519364910,0.03265,107720.0,107710.0,0.98863876]
[1756519365110,0.03265,107730.0,107720.0,0.07608]
[1756519365315,0.15744128,107730.0,107720.0,2.10147876]
[1756519365615,0.05744128,107730.0,107720.0,1.63938876]
[1756519365923,0.15744128,107730.0,107720.0,1.63938876]
[1756519366119,0.20312128,107730.0,107720.0,1.63938876]
[1756519366419,0.15744128,107730.0,107720.0,1.63938876]
[1756519366619,0.05744128,107730.0,107720.0,1.63938876]
[1756519367122,0.15744128,107730.0,107720.0,1.63938876]
[1756519367320,0.15744128,107730.0,107720.0,2.10147876]
[1756519367521,0.12479128,107730.0,107720.0,2.10147876]
[1756519367722,0.02479128,107730.0,107720.0,2.10147876]
[1756519367919,0.40648,107740.0,107720.0,2.05774876]
[1756519368119,0.53913,107740.0,107730.0,0.52654876]
[1756519368520,0.61241782,107740.0,107730.0,0.52654876]
[1756519370326,0.07328782,107740.0,107730.0,1.34943876]
[1756519370624,0.38487563,107750.0,107730.0,1.34943876]
[1756519370925,0.001,107740.0,107730.0,0.43688]
[1756519371125,0.001,107740.0,107730.0,1.54268]
[1756519371327,0.001,107740.0,107730.0,2.00477]
[1756519371627,0.0928003,107740.0,107730.0,2.00477]
[1756519371826,0.0928003,107740.0,107730.0,2.45523876]
[1756519372219,0.0928003,107740.0,107730.0,2.70523876]
[1756519372519,0.0938003,107740.0,107730.0,2.70523876]
[1756519372718,0.0938003,107740.0,107730.0,2.24106876]
[1756519372919,0.0938003,107740.0,107730.0,1.13734876]
[1756519373216,0.16754088,107740.0,107730.0,2.70283876]
[1756519373824,0.16754088,107740.0,107730.0,2.25237]
[1756519374017,0.16754088,107740.0,107730.0,2.70283876]
[1756519374525,0.09726087,107740.0,107730.0,2.70283876]
[1756519374718,0.01942058,107740.0,107730.0,2.70283876]
[1756519374919,0.5319086,107770.0,107740.0,0.0928003]
[1756519375223,0.55443363,107770.0,107760.0,0.46209]
[1756519375420,0.55443363,107770.0,107750.0,0.3608]
[1756519375421,0.0928175,107720.0,107710.0,2.19301746]
[1756519375726,0.5319475,107720.0,107710.0,0.79839166]
[1756519376017,0.0928262,107710.0,107700.0,1.55073]
[1756519376420,0.11535903,107710.0,107700.0,1.8986529]
[1756519376624,0.02253283,107710.0,107700.0,2.1486529]
[1756519376821,0.47915845,107740.0,107700.0,2.1486529]
[1756519377019,0.48866296,107740.0,107720.0,0.3479229]
[1756519377221,0.04568,107730.0,107720.0,1.90891166]
[1756519377421,0.06821451,107730.0,107720.0,1.90891166]
[1756519378530,0.06821451,107730.0,107720.0,1.90991166]
[1756519378728,0.02253451,107730.0,107720.0,2.27071166]
[1756519379026,0.09521296,107740.0,107720.0,2.0702429]
[1756519379227,0.07267845,107740.0,107730.0,1.15919166]
[1756519379418,0.04568,107750.0,107730.0,1.15919166]
[1756519379723,0.12545218,107750.0,107740.0,1.90723166]
[1756519379918,0.48625218,107750.0,107740.0,1.90723166]
[1756519380118,0.73625218,107750.0,107740.0,1.55930876]
[1756519381019,0.73625218,107750.0,107740.0,1.56076876]
[1756519381316,0.73625218,107750.0,107740.0,0.45192876]
[1756519381520,0.76429111,107750.0,107730.0,1.56276876]
[1756519381718,0.04613,107740.0,107730.0,1.8210229]
[1756519381913,0.06867381,107740.0,107730.0,1.8210229]
[1756519382122,0.3608,107750.0,107740.0,0.0332]
[1756519382427,0.39345,107750.0,107740.0,0.07846]
[1756519382824,0.39345,107750.0,107740.0,0.52892876]
[1756519383122,0.03265,107750.0,107740.0,0.52892876]
[1756519383329,0.35328061,107760.0,107740.0,0.52892876]
[1756519383626,0.38593061,107760.0,107750.0,0.52892876]
[1756519384023,0.38593061,107760.0,107750.0,0.07846]
[1756519384329,0.07878,107750.0,107740.0,0.52892876]
[1756519384523,0.43958,107750.0,107740.0,0.87685166]
[1756519384725,0.53282783,107760.0,107750.0,0.04526]
[1756519384923,0.53282783,107760.0,107750.0,0.52892876]
[1756519385528,0.45504783,107760.0,107750.0,1.98457166]
[1756519385719,0.43014516,107760.0,107750.0,1.98457166]
[1756519385918,0.07686455,107760.0,107750.0,2.34537166]
[1756519386528,0.07686455,107760.0,107750.0,1.8945829]
[1756519386717,0.07686455,107760.0,107750.0,2.34505166]
[1756519387924,0.15564455,107760.0,107750.0,2.34465166]
[1756519388228,0.15564455,107760.0,107750.0,1.5334629]
[1756519388428,0.15564455,107760.0,107750.0,1.98393166]
[1756519388630,0.15564455,107760.0,107750.0,2.34473166]
[1756519389323,0.76644455,107760.0,107750.0,1.63604876]
[1756519389827,0.76644455,107760.0,107750.0,0.07846]
[1756519390129,0.76644455,107760.0,107750.0,0.52892876]
[1756519390431,0.40564455,107760.0,107750.0,0.52892876]
[1756519390729,0.10951455,107760.0,107750.0,0.87685166]
[1756519390936,0.15564455,107760.0,107750.0,0.87685166]
[1756519391429,0.15564455,107760.0,107750.0,0.4263829]
[1756519391623,0.07878,107750.0,107740.0,1.54546]
[1756519391934,0.07878,107740.0,107730.0,0.52892876]
[1756519392127,0.43958,107740.0,107730.0,0.07846]
[1756519392427,0.68958,107740.0,107730.0,0.07846]
[1756519392826,0.68958,107740.0,107730.0,0.52892876]
[1756519393028,0.03265,107740.0,107730.0,0.87685166]
[1756519393220,0.32878,107740.0,107730.0,0.52892876]
[1756519393622,0.32878,107740.0,107730.0,0.07846]
[1756519393820,0.68958,107740.0,107730.0,0.52892876]
[1756519394019,0.68958,107740.0,107720.0,0.49572876]
[1756519394225,0.43958,107730.0,107720.0,0.87685166]
[1756519394627,0.3608,107730.0,107720.0,0.87685166]
[1756519395020,0.03265,107740.0,107730.0,0.07846]
[1756519395224,0.07878,107750.0,107740.0,0.07846]
[1756519395424,0.43958,107750.0,107740.0,0.87685166]
[1756519395627,0.43958,107750.0,107740.0,0.07846]
[1756519396424,0.43958,107750.0,107740.0,0.52892876]
[1756519396622,0.43958,107750.0,107740.0,0.0332]
[1756519396818,0.04613,107740.0,107730.0,1.60464876]
[1756519397020,0.04613,107740.0,107730.0,1.95257166]
[1756519398024,0.04613,107740.0,107730.0,1.95357166]
[1756519398331,0.43958,107740.0,107730.0,0.001]
[1756519399233,1.14004876,107740.0,107730.0,0.001]
[1756519399935,1.16311276,107740.0,107730.0,0.001]
[1756519401328,0.712644,107740.0,107730.0,0.001]
[1756519401528,0.71298123,107740.0,107730.0,0.001]
[1756519401834,0.68958,107740.0,107730.0,0.001]
[1756519404336,0.68958,107740.0,107730.0,0.0342]
[1756519404531,0.68958,107740.0,107730.0,0.001]
[1756519404941,0.43958,107740.0,107730.0,0.001]
[1756519406031,0.89004876,107740.0,107730.0,0.001]
[1756519409839,1.98324876,107740.0,107730.0,0.001]
[1756519410236,0.43958,107740.0,107730.0,0.07946]
[1756519410534,0.43958,107740.0,107730.0,0.87785166]
[1756519410733,0.43958,107740.0,107730.0,0.4273829]
[1756519410931,0.43958,107740.0,107730.0,1.12785166]
[1756519411332,0.0791,107730.0,107720.0,0.3479229]
[1756519411534,0.03314,107710.0,107700.0,0.53080876]
[1756519411735,0.03314,107710.0,107700.0,0.08034]
[1756519411736,0.4399,107710.0,107700.0,0.08034]
[1756519411937,0.4399,107710.0,107700.0,0.4233429]
[1756519414138,2.34436876,107710.0,107700.0,0.004]
[1756519414344,2.36773639,107710.0,107700.0,0.004]
[1756519414537,2.16726763,107710.0,107700.0,0.004]
[1756519414842,2.61773639,107710.0,107700.0,0.004]
[1756519415338,2.16726763,107710.0,107700.0,0.004]
[1756519415542,2.61773639,107710.0,107700.0,0.004]
[1756519416539,2.61773639,107710.0,107670.0,1.78473078]
[1756519416735,2.61773639,107710.0,107670.0,0.10229078]
[1756519416736,0.0791,107680.0,107670.0,0.10229078]
[1756519417335,0.4399,107680.0,107670.0,0.69529368]
[1756519417539,0.4399,107680.0,107670.0,0.44529368]
[1756519417839,0.46443491,107680.0,107670.0,0.3450029]
[1756519419143,0.91490367,107680.0,107670.0,0.3450029]
[1756519419344,2.00826367,107680.0,107670.0,0.3779929]
[1756519420250,1.55779491,107680.0,107670.0,0.4281629]
[1756519420440,0.02453491,107680.0,107670.0,1.48943166]
[1756519420646,1.95058876,107700.0,107670.0,1.48943166]
[1756519420947,1.95058876,107700.0,107680.0,0.08316]
[1756519420948,0.0791,107690.0,107680.0,0.08316]
[1756519421247,0.4399,107690.0,107680.0,0.08316]
[1756519421446,0.4399,107690.0,107680.0,0.4261629]
[1756519422344,1.50016,107700.0,107680.0,0.6259929]
[1756519422544,1.5333,107700.0,107690.0,0.4261629]
[1756519423048,0.4399,107700.0,107690.0,0.4261629]
[1756519423247,1.53326,107700.0,107690.0,0.4261629]
[1756519423944,1.60881777,107700.0,107690.0,0.4261629]
[1756519424743,0.51545777,107700.0,107690.0,0.4261629]
[1756519424948,1.60881777,107700.0,107690.0,0.4261629]
[1756519425149,0.17903324,107700.0,107690.0,0.87663166]
[1756519425349,0.13307324,107700.0,107690.0,1.12663166]
[1756519425549,0.49387324,107700.0,107690.0,0.6761629]
[1756519425848,0.53983324,107700.0,107690.0,0.6761629]
[1756519427048,0.53983324,107700.0,107690.0,1.12663166]
[1756519427549,0.09993324,107700.0,107690.0,1.12663166]
[1756519427741,0.40676,107710.0,107690.0,1.12663166]
[1756519427942,0.4399,107710.0,107700.0,0.87663166]
[1756519428249,0.51470068,107710.0,107700.0,0.87663166]
[1756519428444,0.53948062,107710.0,107700.0,0.87663166]
[1756519428849,0.53948062,107710.0,107700.0,0.4261629]
[1756519431155,0.54048062,107710.0,107700.0,0.4261629]
[1756519432647,0.54048062,107710.0,107700.0,0.08316]
[1756519433045,0.54048062,107710.0,107700.0,0.4261629]
[1756519433649,0.49452062,107710.0,107700.0,1.12663166]
[1756519433949,0.49452062,107710.0,107700.0,1.48743166]